lending/lending_fUSD_20240621
["ID","MTS","AMOUNT","RATE_DAILY","PERIOD"]
[330065975,1718982673532,-180.77276171,0.00013083,2]
[330065976,1718982673557,-155.09203532,0.00013083,2]
[330065977,1718982673604,-218.98195667,0.00013083,2]
[330065978,1718982674510,526.28955324,0.00013083,2]
[330065979,1718982675912,140.63017089,0.00013083,2]
[330065980,1718982675946,164.17575855,0.00013083,2]
[330065981,1718982676229,201.07468275,0.00013083,2]
[330065982,1718982676318,-169.48516651,0.00015,2]
[330065983,1718982676358,161.03911194,0.00013083,2]
[330065984,1718982677091,-201.07468275,0.00013083,2]
[330065985,1718982677569,-3.91478441,0.00013083,2]
[330065986,1718982677600,-155.0,0.00013083,2]
[330065987,1718982677633,-201.07468275,0.00013083,2]
[330065988,1718982678448,-868.34176295,0.00013083,2]
[330065989,1718982678478,-242.03430423,0.00013083,2]
[330065990,1718982679130,117.95516293,0.00013083,2]
[330065991,1718982679156,800.84762881,0.00013083,2]
[330065992,1718982679195,18.25766763,0.00013083,2]
[330065993,1718982681039,-136.74233237,0.00013083,2]
[330065994,1718982681063,-155.0,0.00013083,2]
[330065995,1718982681085,-18.25766763,0.00013083,2]
[330065996,1718982681534,-138.29114385,0.00013083,2]
[330065997,1718982681558,-491.4546726,0.00013083,2]
[330065998,1718982681583,-155.0,0.00013083,2]
[330065999,1718982681612,-269.44071926,0.00013083,2]
[330066000,1718982681638,-155.0,0.00013083,2]
[330066001,1718982681665,-235.16032657,0.00013083,2]
[330066002,1718982681690,-74.83967343,0.00013083,2]
[330066003,1718982681759,-80.16032657,0.00013083,2]
[330066004,1718982681782,-283.44364674,0.00013083,2]
[330066005,1718982681805,-158.21632429,0.00013083,2]
[330066006,1718982682663,1177.89403127,0.00013083,2]
[330066007,1718982682704,209.63253341,0.00013083,2]
[330066008,1718982682727,763.63797479,0.00013083,2]
[330066009,1718982682768,-160.26424248,0.00013083,2]
[330066010,1718982682961,155.97353947,0.00013083,2]
[330066011,1718982682994,5.74022181,0.00013083,2]
[330066012,1718982683281,-639.77546053,0.00013083,2]
[330066013,1718982683780,-18.51298712,0.00013083,2]
[330066014,1718982684057,304.53512702,0.00013083,2]
[330066015,1718982684093,155.0,0.00013083,2]
[330066016,1718982684212,180.24033351,0.00013083,2]
[330066017,1718982685214,-775.25796895,0.00013083,2]
[330066018,1718982685694,-155.0,0.00013083,2]
[330066019,1718982685719,-289.77963259,0.00013083,2]
[330066020,1718982685848,196.12854204,0.00013083,2]
[330066021,1718982687149,289.34979432,0.00013083,2]
[330066022,1718982687170,551.16797057,0.00013083,2]
[330066023,1718982687399,163.5767579,0.00013083,2]
[330066024,1718982687476,157.48810269,0.00013083,2]
[330066025,1718982687626,40.38111965,0.00013083,2]
[330066026,1718982687647,201.96565182,0.00013083,2]
[330066027,1718982687687,242.81398077,0.00013083,2]
[330066061,1718982793693,200.0,0.00029525,120]
[330066063,1718982798778,281.2903214,0.00029125,120]
[330066147,1718983769130,-440.78447052,0.00012264,2]
[330066148,1718983769152,-2458.24642948,0.00012362,2]
[330066198,1718983833383,-726.44768713,0.0001236,2]
[330066199,1718983833392,-1073.55231287,0.0001236,2]
[330066200,1718983833404,-4304.68394104,0.0001236,2]
[330066201,1718983833414,-2490.51964507,0.00012361,2]
[330066202,1718983833423,-363.71116501,0.00012361,2]
[330066203,1718983833432,-1034.0,0.00012362,2]
[330066204,1718983833441,-1267.02452135,0.00012362,2]
[330066205,1718983833451,-269.20894973,0.00012558,2]
[330066206,1718983833461,-482.76727412,0.00012559,2]
[330066207,1718983833470,-830.71890196,0.0001256,2]
[330066208,1718983833480,-918.80279174,0.00012561,2]
[330066209,1718983833489,-339.36468135,0.00012562,2]
[330066210,1718983833498,-224.99,0.00013082,2]
[330066211,1718983833508,-3434.88,0.00013082,2]
[330066212,1718983833517,-217.79404424,0.00013082,2]
[330066213,1718983833526,-544.73578664,0.00013082,2]
[330066214,1718983833535,-217.79404424,0.00013082,2]
[330066215,1718983833546,-155.0,0.00013083,2]
[330066216,1718983833555,-499.99,0.00013083,2]
[330066217,1718983833564,-587.59,0.00013291,2]
[330066218,1718983833574,-181.02,0.00013291,2]
[330066219,1718983833583,-909.67,0.00013291,2]
[330066220,1718983833597,-1133.53475068,0.00013566,2]
[330066221,1718983833606,-955.49830246,0.00014011,2]
[330066222,1718983833616,-8047.28,0.00014012,2]
[330066223,1718983833625,-155.0,0.00014318,2]
[330066224,1718983833636,-163.56645458,0.00014319,2]
[330066225,1718983833645,-155.0,0.00014319,2]
[330066226,1718983833655,-246.00677287,0.00014319,2]
[330066227,1718983833665,-155.0,0.0001432,2]
[330066228,1718983833674,-250.0,0.00014723,2]
[330066229,1718983833683,-1613.5,0.00014835,2]
[330066230,1718983833693,-4995.53,0.00014847,2]
[330066231,1718983833702,-3975.4779,0.00014849,2]
[330066232,1718983833711,-664.02866946,0.00014851,2]
[330066233,1718983833721,-686.95,0.00014852,2]
[330066234,1718983833730,-491.4546726,0.00014859,2]
[330066235,1718983833739,-155.0,0.00014859,2]
[330066236,1718983833749,-155.0,0.0001486,2]
[330066237,1718983833758,-155.0,0.0001486,2]
[330066238,1718983833767,-196.12854204,0.00014861,2]
[330066239,1718983833778,-158.21632429,0.00014862,2]
[330066240,1718983833788,-155.0,0.00014863,2]
[330066241,1718983833798,-155.0,0.00014863,2]
[330066242,1718983833808,-155.0,0.00014863,2]
[330066243,1718983833817,-155.0,0.00014863,2]
[330066244,1718983833827,-155.0,0.00014864,2]
[330066245,1718983833838,-155.0,0.00014864,2]
[330066246,1718983833849,-1069.4164457,0.00014864,2]
[330066247,1718983833858,-155.0,0.00014864,2]
[330066248,1718983833867,-242.03430423,0.00014865,2]
[330066249,1718983833875,-155.0,0.00014865,2]
[330066250,1718983833888,-366.0285791,0.00014865,2]
[330066251,1718983833897,-235.16032657,0.00014865,2]
[330066252,1718983833906,-364.67222398,0.00014866,2]
[330066253,1718983833915,-840.51776489,0.00014866,2]
[330066254,1718983833925,-163.5767579,0.00014866,2]
[330066255,1718983833935,-155.0,0.00014866,2]
[330066256,1718983833944,-269.44071926,0.00014867,2]
[330066257,1718983833954,-155.0,0.00014867,2]
[330066258,1718983833964,-155.0,0.00014868,2]
[330066259,1718983833975,-283.44364674,0.00014868,2]
[330066260,1718983833985,-158.80388924,0.00014868,2]
[330066261,1718983833996,-526.28955324,0.00014869,2]
[330066262,1718983834006,-526.28955324,0.00014869,2]
[330066263,1718983834017,-150.99,0.00014884,2]
[330066264,1718983834028,-1875.01,0.00014888,2]
[330066265,1718983834039,-168.16,0.00014937,2]
[330066266,1718983834049,-250.0,0.00014968,2]
[330066267,1718983834060,-464.36,0.00014975,2]
[330066268,1718983834070,-7606.94892531,0.00015,2]
[330066269,1718983834079,-5000.0,0.00015,2]
[330066270,1718983834093,-7092.3101642,0.00015115,2]
[330066271,1718983834106,-690.20000005,0.00015115,2]
[330066272,1718983834119,-16107.48983575,0.00015115,2]
[330066273,1718983834128,-2603.95832763,0.00015338,2]
[330066274,1718983834139,-641.43342479,0.00015338,2]
[330066275,1718983834150,-266.34568794,0.00015338,2]
[330066276,1718983834162,-530.67255964,0.00015338,2]
[330066277,1718983834171,-659.76744036,0.00015441,2]
[330066278,1718983834183,-17.08255964,0.00015441,2]
[330066279,1718983834192,-587.59,0.00015554,2]
[330066280,1718983834203,-150.0,0.0001572,2]
[330066281,1718983834214,-71.62611702,0.00015758,2]
[330066282,1718983834226,-117.40388298,0.00015758,2]
[330066283,1718983834236,-172.4,0.00015841,2]
[330066284,1718983834245,-169.76,0.00015863,2]
[330066285,1718983834255,-180.0,0.00016233,2]
[330066286,1718983834269,-194.23405018,0.00016287,2]
[330066287,1718983834281,-318.86689986,0.00016287,2]
[330066288,1718983834292,-486.89904996,0.00016287,2]
[330066289,1718983834302,-1262.77288771,0.00016489,2]
[330066290,1718983834311,-625.0,0.0001649,2]
[330066291,1718983834320,-276.34271461,0.0001649,2]
[330066292,1718983834332,-348.65728539,0.0001649,2]
[330066293,1718983834352,-155.0,0.00017533,2]
[330066294,1718983834361,-1.7288704,0.00017533,2]
[330066295,1718983835600,-331.9629089,0.00012559,2]
[330066297,1718983835611,-7.40177245,0.00012559,2]
[330066299,1718983835620,-157.48810269,0.00014865,2]
[330066301,1718983835629,-153.2711296,0.00017533,2]
[330066303,1718983835638,-1613.5,0.00017575,2]
[330066305,1718983835648,-587.59,0.00017818,2]
[330066307,1718983835657,-388.48497612,0.00017999,2]
[330066309,1718983835667,-226.09838366,0.00018,2]
[330066311,1718983835677,-240.38467831,0.00018115,2]
[330066313,1718983835687,-155.0,0.00018322,2]
[330066314,1718983835696,-1000.0,0.00018323,2]
[330066315,1718983835706,-967.71,0.00018849,30]
[330066316,1718983835715,-507.199237,0.000189,2]
[330066317,1718983835725,-151.06385028,0.000189,2]
[330066318,1718983835735,-126072.73449166,0.00019,2]
[330066319,1718983835744,-155.0,0.00019,2]
[330066320,1718983835754,-899.0,0.000191,3]
[330066321,1718983835764,-3077.0,0.000191,3]
[330066322,1718983835774,-507.19923696,0.00019343,2]
[330066323,1718983835783,-507.19923696,0.00019787,2]
[330066324,1718983835793,-187.89378223,0.0002,2]
[330066325,1718983835808,-326.69444584,0.0002,2]
[330066326,1718983835818,-587.59,0.00020082,2]
[330066327,1718983835828,-507.19923696,0.0002023,2]
[330066328,1718983835838,-1613.5,0.00020314,2]
[330066329,1718983835851,-1000.0,0.00020358,2]
[330066330,1718983835861,-507.19923696,0.00020673,2]
[330066331,1718983835871,-179.39771079,0.00020968,2]
[330066332,1718983835880,-330.45147148,0.00020968,2]
[330066333,1718983835890,-1250.0,0.00021,2]
[330066334,1718983835899,-74386.36685538,0.00021,4]
[330066335,1718983835913,-9185.09291747,0.00021,4]
[330066336,1718983835924,-1649.85936052,0.00021,4]
[330066337,1718983835936,-800.07111468,0.00021,4]
[330066338,1718983835948,-2187.93999304,0.00021,4]
[330066339,1718983835959,-2189.43119808,0.00021,4]
[330066343,1718983838267,-155.0,0.00014318,2]
[330066345,1718983838278,-102.40332558,0.00021,4]
[330066359,1718983839836,-781.88578096,0.00021,4]
[330066360,1718983839854,-769.22313,0.00021,4]
[330066361,1718983839867,-368.4034386,0.00021,4]
[330066362,1718983840159,-267.4029094,0.00021,4]
[330066363,1718983840172,-14210.41371415,0.00021,4]
[330066364,1718983840185,-31379.86762403,0.00021,4]
[330066365,1718983840196,-32549.0463642,0.00021,4]
[330066366,1718983840209,-384.59479513,0.00021,4]
[330066367,1718983840221,-347.93,0.00021,4]
[330066368,1718983840234,-1428.80867969,0.00021,4]
[330066374,1718983840734,-364.67222398,0.00014864,2]
[330066375,1718983840744,-526.28955324,0.00014867,2]
[330066376,1718983840755,-1324.52204713,0.00021,4]
[330066390,1718983845088,-158.80388924,0.00014866,2]
[330066392,1718983845103,-129342.95124445,0.00021,4]
[330066393,1718983845112,-852.58,0.00021068,2]
[330066394,1718983845121,-852.58,0.00021068,2]
[330066395,1718983845131,-852.58,0.00021068,2]
[330066396,1718983845143,-442.92,0.00021068,2]
[330066398,1718983845152,-10000.0,0.0002107,2]
[330066399,1718983845161,-507.19923696,0.00021117,2]
[330066401,1718983845170,-1387.76098523,0.00021468,2]
[330066403,1718983845180,-1251.31291923,0.00021499,2]
[330066405,1718983845188,-1251.31291923,0.00021499,2]
[330066407,1718983845197,-2198.0801445,0.00021547,2]
[330066408,1718983845207,-1196.0,0.00021549,2]
[330066409,1718983845216,-5784.0,0.00021549,2]
[330066410,1718983845225,-5164.0,0.00021549,2]
[330066411,1718983845235,-290.0,0.00021549,2]
[330066412,1718983845244,-20759.612,0.00021549,2]
[330066413,1718983845254,-1573.0,0.00021549,2]
[330066414,1718983845264,-507.19923696,0.0002156,2]
[330066415,1718983845274,-155.0,0.00021612,2]
[330066416,1718983845283,-156.047805,0.00021613,2]
[330066417,1718983845293,-193.308668,0.00021613,2]
[330066418,1718983845302,-383.65473788,0.00021635,2]
[330066419,1718983845312,-209.85881102,0.00021643,2]
[330066420,1718983845322,-154.05,0.00021644,2]
[330066421,1718983845332,-219.86,0.00021699,2]
[330066422,1718983845341,-641.16185523,0.00021707,2]
[330066423,1718983845358,-186.37091408,0.00021731,2]
[330066424,1718983845368,-500.0,0.00021732,2]
[330066425,1718983845378,-303.67299994,0.00021756,2]
[330066426,1718983845388,-641.16185521,0.00021757,2]
[330066427,1718983845398,-161.39095177,0.00021796,2]
[330066428,1718983845408,-178.16282075,0.00021797,2]
[330066429,1718983845417,-4590.142631,0.000218,2]
[330066430,1718983845427,-162813.919109,0.000218,2]
[330066431,1718983845437,-483.735,0.00021807,2]
[330066432,1718983845447,-2327.12319301,0.00021807,2]
[330066433,1718983845457,-175.33494798,0.00021807,2]
[330066434,1718983845467,-641.16185521,0.00021807,2]
[330066435,1718983845477,-280.64004302,0.00021817,2]
[330066436,1718983845486,-568.64714346,0.00021817,2]
[330066437,1718983845496,-350.26607795,0.00021872,2]
[330066438,1718983845506,-500.0,0.00021873,2]
[330066439,1718983845515,-200.0,0.00021873,2]
[330066440,1718983845526,-2698.39180074,0.00021896,3]
[330066441,1718983845536,-151.0,0.00021897,2]
[330066442,1718983845545,-151.0,0.00021897,2]
[330066443,1718983845555,-151.0,0.00021897,2]
[330066444,1718983845565,-151.0,0.00021897,2]
[330066445,1718983845575,-23259.1313013,0.00021897,2]
[330066446,1718983845585,-648.0,0.000219,2]
[330066447,1718983845598,-155.0,0.000219,2]
[330066448,1718983845608,-450.0,0.000219,4]
[330066449,1718983845618,-2327.12319297,0.00021905,2]
[330066450,1718983845628,-209.38100041,0.00021906,2]
[330066451,1718983845638,-5907.85263176,0.00021906,2]
[330066452,1718983845647,-19592.60690809,0.00021906,2]
[330066453,1718983845657,-155.0,0.00021907,2]
[330066454,1718983845667,-2225.85543211,0.00021907,2]
[330066455,1718983845678,-418664.363423,0.00021907,2]
[330066456,1718983845687,-151.0,0.00021907,2]
[330066457,1718983845697,-151.0,0.00021907,2]
[330066458,1718983845706,-155.442891,0.00021907,2]
[330066459,1718983845716,-153.702773,0.00021907,2]
[330066460,1718983845726,-151.0,0.00021907,2]
[330066461,1718983845735,-151.0,0.00021907,2]
[330066462,1718983845745,-151.0,0.00021907,2]
[330066463,1718983845754,-151.0,0.00021907,2]
[330066464,1718983845764,-151.0,0.00021907,2]
[330066465,1718983845774,-151.0,0.00021907,2]
[330066466,1718983845784,-151.0,0.00021907,2]
[330066467,1718983845793,-151.0,0.00021907,2]
[330066468,1718983845803,-151.0,0.00021907,2]
[330066469,1718983845813,-151.0,0.00021907,2]
[330066470,1718983845824,-151.0,0.00021907,2]
[330066471,1718983845834,-164.922376,0.00021907,2]
[330066472,1718983845844,-151.0,0.00021907,2]
[330066473,1718983845855,-151.0,0.00021907,2]
[330066474,1718983845865,-189.131022,0.00021907,2]
[330066475,1718983845875,-151.0,0.00021907,2]
[330066476,1718983845885,-151.0,0.00021907,2]
[330066477,1718983845896,-151.0,0.00021907,2]
[330066478,1718983845905,-151.0,0.00021907,2]
[330066479,1718983846007,-151.0,0.00021907,2]
[330066480,1718983846018,-151.0,0.00021907,2]
[330066481,1718983846033,-151.0,0.00021907,2]
[330066482,1718983846044,-153.853196,0.00021907,2]
[330066483,1718983846053,-151.0,0.00021907,2]
[330066484,1718983846062,-151.0,0.00021907,2]
[330066485,1718983846074,-151.0,0.00021907,2]
[330066486,1718983846083,-151.0,0.00021907,2]
[330066487,1718983846092,-152.853636,0.00021907,2]
[330066488,1718983846105,-151.0,0.00021907,2]
[330066489,1718983846115,-151.0,0.00021907,2]
[330066490,1718983846124,-151.0,0.00021907,2]
[330066491,1718983846133,-1697.24668,0.00021907,2]
[330066492,1718983846143,-151.0,0.00021907,2]
[330066493,1718983846153,-151.0,0.00021907,2]
[330066494,1718983846162,-158.984134,0.00021907,2]
[330066495,1718983846171,-151.0,0.00021907,2]
[330066496,1718983846182,-151.0,0.00021907,2]
[330066497,1718983846193,-151.0,0.00021907,2]
[330066498,1718983846203,-151.0,0.00021907,2]
[330066499,1718983846212,-151.0,0.00021907,2]
[330066500,1718983846222,-151.0,0.00021907,2]
[330066501,1718983846231,-151.0,0.00021907,2]
[330066502,1718983846241,-151.0,0.00021907,2]
[330066503,1718983846251,-158.242262,0.00021907,2]
[330066504,1718983846261,-150.5,0.00021908,30]
[330066505,1718983846271,-205.0,0.00021908,30]
[330066506,1718983846282,-176.36818896,0.00021908,2]
[330066507,1718983846291,-543.76261897,0.00021908,2]
[330066508,1718983846301,-209.90278578,0.00021909,2]
[330066509,1718983846310,-500.0,0.00021917,4]
[330066510,1718983846320,-2381.26367827,0.00021917,2]
[330066511,1718983846329,-500.0,0.00021917,4]
[330066512,1718983846338,-300.60699469,0.00021917,4]
[330066513,1718983846351,-500.0,0.00021917,4]
[330066514,1718983846361,-500.0,0.00021917,4]
[330066515,1718983846370,-351.48513267,0.00021917,4]
[330066516,1718983846379,-500.0,0.00021917,4]
[330066517,1718983846388,-500.0,0.00021917,4]
[330066518,1718983846397,-500.0,0.00021917,4]
[330066519,1718983846406,-500.0,0.00021917,4]
[330066520,1718983846415,-528.01958937,0.00021917,4]
[330066521,1718983846425,-500.0,0.00021917,4]
[330066522,1718983846436,-500.0,0.00021917,4]
[330066523,1718983846447,-604.69991535,0.00021917,4]
[330066524,1718983846457,-1334.37,0.00021917,4]
[330066525,1718983846467,-500.0,0.00021917,4]
[330066526,1718983846476,-1503.77,0.00021917,4]
[330066527,1718983846486,-658.02,0.00021917,4]
[330066528,1718983846495,-1149.34,0.00021917,4]
[330066529,1718983846506,-500.0,0.00021917,4]
[330066533,1718983846516,-500.0,0.00021917,4]
[330066536,1718983846527,-500.0,0.00021917,4]
[330066538,1718983846536,-500.0,0.00021917,4]
[330066540,1718983846545,-500.0,0.00021917,4]
[330066542,1718983846555,-506.18,0.00021917,4]
[330066544,1718983846564,-500.0,0.00021917,4]
[330066546,1718983846574,-1257.51,0.00021917,4]
[330066548,1718983846583,-972.65,0.00021917,4]
[330066550,1718983846592,-500.0,0.00021917,4]
[330066551,1718983846604,-500.0,0.00021917,4]
[330066553,1718983846613,-605.67730229,0.00021917,4]
[330066555,1718983846622,-500.0,0.00021917,4]
[330066556,1718983846632,-714.65,0.00021917,4]
[330066557,1718983846641,-1024.35,0.00021917,4]
[330066558,1718983846650,-1116.09,0.00021917,4]
[330066559,1718983846659,-500.0,0.00021917,4]
[330066560,1718983846668,-1357.9,0.00021917,4]
[330066561,1718983846678,-151.677979,0.00021917,2]
[330066562,1718983846687,-500.0,0.00021917,4]
[330066563,1718983846696,-940.38,0.00021917,4]
[330066564,1718983846706,-500.0,0.00021917,4]
[330066565,1718983846715,-500.0,0.00021917,4]
[330066566,1718983846725,-797.94,0.00021917,4]
[330066567,1718983846734,-500.0,0.00021917,4]
[330066568,1718983846744,-500.0,0.00021917,4]
[330066569,1718983846753,-500.0,0.00021917,4]
[330066570,1718983846763,-1079.07,0.00021917,4]
[330066571,1718983846772,-679.18,0.00021917,4]
[330066572,1718983846782,-567.43,0.00021917,4]
[330066573,1718983846791,-500.0,0.00021917,4]
[330066574,1718983846801,-500.0,0.00021917,4]
[330066575,1718983846810,-500.0,0.00021917,4]
[330066576,1718983846819,-500.0,0.00021917,4]
[330066577,1718983846829,-727.48,0.00021917,4]
[330066578,1718983846839,-585.15,0.00021917,4]
[330066579,1718983846852,-500.0,0.00021917,4]
[330066580,1718983846861,-151.0,0.00021917,2]
[330066581,1718983846871,-759.2,0.00021917,4]
[330066582,1718983846881,-500.0,0.00021917,4]
[330066583,1718983846891,-151.0,0.00021917,2]
[330066584,1718983846900,-151.0,0.00021917,2]
[330066585,1718983846911,-501.81681377,0.00021917,4]
[330066586,1718983846920,-186.628077,0.00021917,2]
[330066587,1718983846930,-500.0,0.00021917,4]
[330066588,1718983846940,-500.0,0.00021917,4]
[330066589,1718983846950,-545.34,0.00021917,4]
[330066590,1718983846959,-1054.28,0.00021917,4]
[330066591,1718983846968,-720.68,0.00021917,4]
[330066592,1718983846978,-500.0,0.00021917,4]
[330066593,1718983846987,-500.0,0.00021917,4]
[330066594,1718983846996,-500.0,0.00021917,4]
[330066595,1718983847006,-500.0,0.00021917,4]
[330066596,1718983847017,-500.0,0.00021917,4]
[330066597,1718983847031,-763.8,0.00021917,4]
[330066598,1718983847041,-500.0,0.00021917,4]
[330066599,1718983847051,-500.0,0.00021917,4]
[330066600,1718983847062,-500.0,0.00021917,4]
[330066601,1718983847072,-500.0,0.00021917,4]
[330066602,1718983847081,-500.0,0.00021917,4]
[330066603,1718983847091,-500.0,0.00021917,4]
[330066604,1718983847101,-210.34101425,0.00021917,4]
[330066605,1718983847114,-500.0,0.00021917,4]
[330066606,1718983847124,-905.24,0.00021917,4]
[330066607,1718983847134,-500.0,0.00021917,4]
[330066608,1718983847145,-514.27,0.00021917,4]
[330066609,1718983847155,-1281.91,0.00021917,4]
[330066610,1718983847166,-909.83,0.00021917,4]
[330066611,1718983847175,-500.0,0.00021917,4]
[330066612,1718983847185,-500.0,0.00021917,4]
[330066613,1718983847195,-500.0,0.00021917,4]
[330066614,1718983847205,-500.0,0.00021917,4]
[330066615,1718983847215,-777.89,0.00021917,4]
[330066616,1718983847225,-500.0,0.00021917,4]
[330066617,1718983847235,-500.0,0.00021917,4]
[330066618,1718983847245,-500.0,0.00021917,4]
[330066619,1718983847254,-500.0,0.00021917,4]
[330066620,1718983847264,-310.61302664,0.00021917,4]
[330066621,1718983847274,-500.0,0.00021917,4]
[330066622,1718983847284,-761.24,0.00021917,4]
[330066623,1718983847294,-1097.22,0.00021917,4]
[330066624,1718983847304,-500.0,0.00021917,4]
[330066625,1718983847314,-500.0,0.00021917,4]
[330066626,1718983847325,-500.0,0.00021917,4]
[330066627,1718983847335,-599.81,0.00021917,4]
[330066628,1718983847344,-500.0,0.00021917,4]
[330066629,1718983847355,-637.947178,0.00021917,4]
[330066630,1718983847365,-596.92,0.00021917,4]
[330066631,1718983847376,-716.42,0.00021917,4]
[330066632,1718983847386,-500.0,0.00021917,4]
[330066633,1718983847395,-500.0,0.00021917,4]
[330066634,1718983847405,-500.0,0.00021917,4]
[330066635,1718983847414,-788.36,0.00021917,4]
[330066636,1718983847424,-594.99,0.00021917,4]
[330066637,1718983847434,-664.23,0.00021917,4]
[330066638,1718983847445,-500.0,0.00021917,4]
[330066639,1718983847455,-538.78670932,0.00021917,4]
[330066640,1718983847465,-500.0,0.00021917,4]
[330066641,1718983847475,-500.0,0.00021917,4]
[330066642,1718983847485,-751.58,0.00021917,4]
[330066643,1718983847495,-500.0,0.00021917,4]
[330066644,1718983847505,-500.0,0.00021917,4]
[330066645,1718983847515,-500.0,0.00021917,4]
[330066646,1718983847524,-658.15,0.00021917,4]
[330066647,1718983847534,-500.0,0.00021917,4]
[330066648,1718983847543,-500.0,0.00021917,4]
[330066649,1718983847553,-500.0,0.00021917,4]
[330066650,1718983847564,-500.0,0.00021917,4]
[330066651,1718983847574,-602.40244803,0.00021917,4]
[330066652,1718983847584,-500.0,0.00021917,4]
[330066653,1718983847594,-500.0,0.00021917,4]
[330066654,1718983847606,-500.0,0.00021917,4]
[330066655,1718983847616,-500.0,0.00021917,4]
[330066656,1718983847625,-505.51246792,0.00021917,4]
[330066657,1718983847636,-500.0,0.00021917,4]
[330066658,1718983847645,-500.0,0.00021917,4]
[330066659,1718983847655,-518.54865683,0.00021917,4]
[330066660,1718983847665,-500.0,0.00021917,4]
[330066661,1718983847675,-777.93,0.00021917,4]
[330066662,1718983847684,-500.0,0.00021917,4]
[330066663,1718983847694,-500.0,0.00021917,4]
[330066664,1718983847703,-500.0,0.00021917,4]
[330066665,1718983847713,-366.90211675,0.00021917,4]
[330066666,1718983847725,-822.01,0.00021917,4]
[330066667,1718983847734,-540.91,0.00021917,4]
[330066668,1718983847744,-500.0,0.00021917,4]
[330066669,1718983847753,-500.0,0.00021917,4]
[330066670,1718983847763,-871.7,0.00021917,4]
[330066671,1718983847772,-500.0,0.00021917,4]
[330066672,1718983847781,-500.0,0.00021917,4]
[330066673,1718983847791,-773.7,0.00021917,4]
[330066674,1718983847801,-500.0,0.00021917,4]
[330066675,1718983847810,-511.61,0.00021917,4]
[330066676,1718983847819,-500.0,0.00021917,4]
[330066677,1718983847828,-918.49,0.00021917,4]
[330066678,1718983847839,-870.74,0.00021917,4]
[330066679,1718983847850,-500.0,0.00021917,4]
[330066680,1718983847859,-500.0,0.00021917,4]
[330066681,1718983847868,-500.0,0.00021917,4]
[330066682,1718983847877,-500.0,0.00021917,4]
[330066683,1718983847887,-250.0,0.00021917,4]
[330066684,1718983847898,-500.0,0.00021917,4]
[330066685,1718983847907,-500.0,0.00021917,2]
[330066686,1718983847916,-575.75,0.00021917,4]
[330066687,1718983847925,-880.88,0.00021917,4]
[330066688,1718983847935,-500.0,0.00021917,4]
[330066689,1718983847944,-500.0,0.00021917,4]
[330066690,1718983847954,-500.0,0.00021917,4]
[330066691,1718983847963,-500.0,0.00021917,4]
[330066692,1718983847973,-500.0,0.00021917,4]
[330066693,1718983847982,-500.0,0.00021917,4]
[330066694,1718983847991,-500.0,0.00021917,4]
[330066695,1718983848001,-500.0,0.00021917,4]
[330066696,1718983848010,-500.0,0.00021917,4]
[330066697,1718983848020,-690.12,0.00021917,4]
[330066698,1718983848033,-500.0,0.00021917,2]
[330066699,1718983848042,-500.0,0.00021917,4]
[330066700,1718983848051,-500.0,0.00021917,4]
[330066701,1718983848060,-500.0,0.00021917,4]
[330066702,1718983848071,-784.97,0.00021917,4]
[330066703,1718983848079,-505.09816814,0.00021917,4]
[330066704,1718983848089,-500.0,0.00021917,4]